bitfinex-derivatives/quotes_ETHF0:USTF0_20251107
["timestamp","ask_amount","ask_price","bid_price","bid_amount"]
[1762533577628,3.69737,3311.4,3310.6,3.2078]
[1762533577629,0.4471,3311.1,3311.0,0.48962]
[1762533577824,0.48961,3311.1,3311.0,0.48962]
[1762533578222,0.48959,3311.3,3310.8,1.62508809]
[1762533578427,0.4896,3311.2,3310.8,1.62508809]
[1762533578726,0.48964,3311.0,3310.9,0.48963]
[1762533579726,0.48966,3310.9,3310.8,0.48966]
[1762533579932,0.70523352,3311.3,3310.6,3.2078]
[1762533579933,0.93677,3310.7,3310.6,4.83288809]
[1762533580125,0.48967,3310.7,3310.6,3.69749]
[1762533580626,3.2078,3311.4,3310.6,3.2078]
[1762533580826,0.48963,3311.1,3311.0,0.48962]
[1762533581125,3.2078,3311.4,3311.3,0.48958]
[1762533581327,3.69737,3311.4,3311.3,0.48958]
[1762533581830,0.4896,3311.3,3311.2,0.4896]
[1762533582125,0.48954,3311.6,3311.5,0.48955]
[1762533582331,0.31183913,3311.7,3311.2,0.00453275]
[1762533582527,1.39223529,3311.7,3311.2,0.00453275]
[1762533582727,0.48958,3311.3,3311.2,0.49411275]
[1762533583030,0.48957,3311.4,3311.3,0.48956]
[1762533583330,0.91648,3311.3,3311.2,0.00453275]
[1762533583628,0.4269,3311.3,3311.2,0.00453275]
[1762533583816,0.4269,3311.3,3311.2,0.49413275]
[1762533584021,0.48958,3311.3,3311.2,0.49413275]
[1762533584221,0.48958,3311.3,3311.2,0.00453275]
[1762533584420,0.48958,3311.3,3311.2,0.49413275]
[1762533584629,1.13193352,3311.6,3311.2,0.00453275]
[1762533584820,0.48958,3311.4,3311.3,0.48956]
[1762533585023,0.48958,3311.3,3311.2,0.00453275]
[1762533585222,0.91648,3311.3,3311.2,0.00453275]
[1762533586630,0.48958,3311.4,3311.3,0.48956]
[1762533586932,0.48958,3311.3,3311.2,0.49412275]
[1762533587134,0.00233913,3311.7,3311.6,0.93754]
[1762533588132,0.00233913,3311.7,3311.6,2.56112261]
[1762533588431,0.00233913,3311.7,3311.6,2.55918504]
[1762533589235,1.19807,3311.4,3311.3,0.48958]
[1762533589639,0.91648,3311.3,3311.2,0.49412275]
[1762533590119,0.2816,3311.4,3311.3,0.48958]
[1762533590525,0.7085,3311.4,3311.3,0.48958]
[1762533590828,0.91648,3311.3,3311.2,0.00453275]
[1762533591230,0.2816,3311.4,3311.3,0.48958]
[1762533591427,0.91648,3311.3,3311.2,0.00453275]
[1762533592929,0.91648,3311.3,3311.2,0.49413275]
[1762533593231,0.91648,3311.3,3311.2,0.00453275]
[1762533594226,0.4269,3311.3,3311.2,0.00453275]
[1762533594531,0.91648,3311.3,3311.2,0.00453275]
[1762533596131,1.3126041,3311.3,3311.2,0.00453275]
[1762533596329,9.3126041,3311.3,3311.2,0.00453275]
[1762533596629,0.4236,3310.3,3310.2,0.00296318]
[1762533596835,3.4671,3310.8,3310.2,0.00296318]
[1762533597036,3.95676,3310.8,3310.7,0.48967]
[1762533597233,4.38036,3310.8,3310.7,0.48967]
[1762533597835,0.4897,3310.6,3310.5,0.4897]
[1762533598030,0.4236,3310.6,3310.5,0.4897]
[1762533598233,3.95677,3310.8,3310.7,0.48967]
[1762533598532,0.4236,3310.5,3310.4,0.00453275]
[1762533598734,0.48968,3310.7,3310.4,0.00453275]
[1762533599038,3.8907,3310.8,3310.7,0.48967]
[1762533599330,0.9133,3310.6,3310.5,0.48969]
[1762533599535,0.9133,3310.5,3310.4,0.00453275]
[1762533599929,0.4236,3310.5,3310.4,0.49425275]
[1762533600135,0.9133,3310.5,3310.4,0.49425275]
[1762533600431,0.9133,3310.5,3310.4,0.00453275]
[1762533600841,0.9133,3310.5,3310.4,0.49425275]
[1762533601439,0.4236,3309.8,3309.7,1.62164504]
[1762533601636,0.91342,3309.7,3309.6,3.2078]
[1762533602047,0.91342,3309.7,3309.6,3.69763]
[1762533602338,0.91342,3309.7,3309.6,3.2078]
[1762533602536,4.12122,3309.7,3309.6,0.00385084]
[1762533602931,0.4236,3309.4,3309.3,0.49441275]
[1762533603131,0.2593,3309.6,3309.3,0.49441275]
[1762533603132,0.2593,3309.6,3309.5,0.48985]
[1762533603335,3.4671,3309.6,3309.3,0.00453275]
[1762533603640,0.91346,3309.4,3309.3,0.00453275]
[1762533603846,0.2593,3309.0,3308.2,1.62164504]
[1762533604135,0.4236,3308.8,3308.7,0.48995]
[1762533604343,0.4236,3308.8,3308.7,0.48996]
[1762533604636,3.2078,3308.9,3308.2,0.00364343]
[1762533604845,0.49003,3308.3,3308.2,0.49368343]
[1762533605134,0.91363,3308.3,3308.2,0.00364343]
[1762533605333,0.91363,3308.3,3306.8,2.68493695]
[1762533605334,0.2593,3307.2,3307.1,3.2078]
[1762533605742,0.2593,3307.8,3307.1,3.2078]
[1762533605743,0.00453275,3307.5,3307.1,3.2078]
[1762533605945,0.00453275,3307.5,3307.4,0.49016]
[1762533606139,0.00453275,3307.5,3307.2,0.49019]
[1762533606140,0.42813275,3307.5,3307.2,0.49019]
[1762533606531,0.42813275,3307.5,3307.3,0.49016]
[1762533606737,0.4236,3307.3,3307.2,0.00343683]
[1762533606939,0.49019,3307.2,3307.1,3.2078]
[1762533607249,11.4671,3307.2,3306.0,0.2647]
[1762533607434,3.2078,3306.5,3306.2,0.49033]
[1762533607638,0.4236,3306.4,3306.3,0.49031]
[1762533608033,0.4236,3306.7,3306.6,0.49027]
[1762533608246,0.4236,3306.7,3306.3,0.00246672]
[1762533608247,0.00238445,3306.7,3306.3,0.00246672]
[1762533608635,0.00238445,3306.7,3306.3,0.49277672]
[1762533608938,0.00238445,3306.7,3306.6,0.49027]
[1762533609137,0.00238445,3306.7,3306.6,0.75497]
[1762533609445,0.00238445,3306.7,3306.6,1.17657]
[1762533609634,0.00453275,3307.5,3307.4,0.49016]
[1762533609948,0.49467275,3307.5,3307.0,3.2078]
[1762533610143,0.49467275,3307.5,3306.6,0.2647]
[1762533610144,0.00453275,3307.5,3307.3,0.49016]
[1762533610642,0.00765254,3307.5,3307.1,0.49019]
[1762533610845,0.00765254,3307.5,3306.9,3.2078]
[1762533610846,0.00765254,3307.5,3307.3,0.49016]
[1762533611039,0.49016,3307.4,3307.0,0.4902]
[1762533611339,0.49779254,3307.5,3306.9,3.2078]
[1762533611544,3.36715254,3307.5,3306.8,0.49024]
[1762533611841,3.36715254,3307.5,3306.4,3.2078]
[1762533612046,0.49024,3306.9,3306.4,3.2078]
[1762533612242,3.36715254,3307.5,3306.4,3.2078]
[1762533612547,0.4902,3307.1,3306.8,0.49024]
[1762533612746,3.36715254,3307.5,3306.4,3.2078]
[1762533612942,3.2078,3307.1,3306.8,0.49024]
[1762533613243,3.2078,3307.1,3306.9,0.49022]
[1762533613645,3.2078,3307.1,3306.7,0.49025]
[1762533613840,0.49021,3307.0,3306.8,0.49024]
[1762533614040,0.49024,3306.9,3306.3,0.49277672]
[1762533614246,3.2078,3307.1,3306.3,0.00246672]
[1762533614645,0.49024,3306.9,3306.3,0.00246672]
[1762533614847,3.2078,3307.1,3306.8,0.49024]
[1762533615045,0.49023,3306.9,3306.6,0.49026]
[1762533615246,3.2078,3307.1,3306.4,3.2078]
[1762533615449,3.2078,3307.1,3307.0,0.4216]
[1762533615648,0.00765254,3307.5,3306.8,0.2647]
[1762533615649,0.00765254,3307.5,3307.3,0.49016]
[1762533616043,0.00765254,3307.5,3307.2,0.2647]
[1762533616244,0.49022,3307.0,3306.8,3.2078]
[1762533616441,0.49026,3306.7,3306.5,0.49028]
[1762533616751,3.2078,3307.0,3306.3,0.00246672]
[1762533616949,0.49029,3306.5,3306.3,0.00246672]
[1762533617150,0.4236,3306.4,3306.3,0.00246672]
[1762533618152,3.2078,3306.6,3306.4,0.4903]
[1762533618344,3.69807,3306.6,3306.4,0.4903]
[1762533618545,0.4236,3306.4,3306.3,0.00246672]
[1762533618847,3.2078,3306.6,3306.5,0.91189]
[1762533619350,3.2078,3306.6,3306.3,0.00246672]
[1762533619542,0.49029,3306.5,3306.3,0.00246672]
[1762533619742,0.49026,3306.7,3306.5,0.49029]
[1762533619951,3.2078,3307.0,3306.3,0.00246672]
[1762533620341,3.2078,3307.0,3306.9,0.49023]
[1762533620548,3.2078,3307.0,3306.3,0.00246672]
[1762533620738,0.4236,3306.5,3306.3,0.00246672]
[1762533620942,0.1517,3307.2,3304.8,0.2647]
[1762533620943,3.69820135,3306.6,3305.2,3.2078]
[1762533621139,0.49052,3304.9,3304.8,3.4725]
[1762533621353,0.49051,3305.1,3304.6,3.2078]
[1762533621547,0.00453275,3305.2,3305.0,0.49051]
[1762533621745,0.00453275,3305.2,3305.1,0.49049]
[1762533622046,0.00695669,3305.2,3305.1,0.91578044]
[1762533622256,3.69813,3306.3,3305.1,8.00369044]
[1762533622441,3.2078,3306.3,3305.5,3.2078]
[1762533622948,3.2078,3306.3,3306.1,0.49034]
[1762533623151,3.607,3306.8,3306.1,0.49034]
[1762533623152,3.607,3306.8,3306.1,0.2647]
[1762533623449,0.49026,3306.7,3306.2,0.49032]
[1762533623650,0.49027,3306.7,3306.5,0.49028]
[1762533623852,4.10405961,3306.8,3306.5,0.49028]
[1762533624046,3.61381961,3306.8,3306.6,0.49027]
[1762533624256,3.2078,3307.3,3307.2,0.49018]
[1762533624554,3.2078,3307.7,3307.6,0.49012]
[1762533624853,3.2078,3307.7,3307.5,0.75483]
[1762533625256,0.00453275,3307.9,3307.5,3.47630998]
[1762533625551,8.8078,3309.1,3307.6,6.0464]
[1762533625749,0.36780498,3309.0,3308.8,0.48993]
[1762533625954,10.891,3309.7,3308.2,0.2647]
[1762533625955,3.2078,3309.5,3309.3,0.48986]
[1762533626250,3.2078,3309.5,3308.2,0.2647]
[1762533626251,3.21036625,3309.5,3308.6,0.48996]
[1762533626446,3.2078,3309.1,3308.7,0.00453275]
[1762533626662,0.48995,3308.8,3308.7,0.00453275]
[1762533626851,0.49004,3308.2,3307.6,3.2078]
[1762533627050,0.49012,3307.7,3307.5,0.26850998]
[1762533627246,0.35474226,3308.3,3307.5,0.00380998]
[1762533627753,0.4901,3307.8,3307.5,0.49393998]
[1762533627949,3.2078,3308.0,3307.5,0.49393998]
[1762533627950,0.49012,3307.7,3307.5,0.00380998]
[1762533628148,0.49022,3307.0,3306.5,0.49028]
[1762533628454,3.2078,3307.6,3306.6,3.2078]
[1762533628455,0.35500801,3307.4,3306.6,3.2078]
[1762533628654,3.2078,3307.6,3306.6,3.2078]
[1762533628655,0.51370801,3307.5,3306.6,3.2078]
[1762533628847,0.49017,3307.3,3306.9,0.49022]
[1762533629149,3.2078,3307.2,3306.9,0.00215074]
[1762533629349,0.35500801,3307.1,3306.9,0.00215074]
[1762533629549,0.84520801,3307.1,3306.9,0.00215074]
[1762533629848,0.35500801,3307.0,3306.9,0.00215074]
[1762533630251,8.35500801,3307.0,3306.9,0.00215074]
[1762533630448,0.49023,3306.9,3306.8,0.00453275]
[1762533630643,0.49034,3306.2,3305.8,3.2078]
[1762533630852,0.35500801,3306.8,3306.3,0.49031]
[1762533631051,0.84526801,3306.7,3306.0,0.49035]
[1762533631249,0.4903,3306.4,3306.0,0.49035]
[1762533631459,3.2078,3307.0,3306.3,0.4903]
[1762533631653,0.34984648,3306.9,3306.7,0.49025]
[1762533631853,0.34984648,3306.8,3306.7,0.49025]
[1762533632053,0.34984648,3306.8,3306.6,0.49026]
[1762533632249,0.34984648,3306.7,3306.6,0.49026]
[1762533632458,0.00313006,3307.3,3306.6,0.49026]
[1762533632459,0.34984648,3307.2,3306.8,0.49024]
[1762533632752,0.34984648,3307.1,3306.9,0.49022]
[1762533632951,0.34984648,3307.2,3307.1,0.4902]
[1762533633451,0.00313006,3307.3,3307.1,0.4902]
[1762533634053,0.34112449,3307.2,3307.0,3.2078]
[1762533634255,0.49025,3306.8,3306.6,3.2078]
[1762533634461,0.00313006,3307.3,3306.5,0.49028]
[1762533634462,0.83139449,3306.7,3306.5,0.49028]
[1762533634653,0.34112449,3306.6,3306.5,0.49028]
[1762533634855,0.34112449,3306.6,3306.2,3.2078]
[1762533635157,0.34112449,3306.5,3306.4,0.49029]
[1762533635356,0.34112449,3306.5,3306.4,0.89419]
[1762533635548,0.70274521,3307.1,3306.8,0.49023]
[1762533635752,0.34150556,3307.0,3306.8,0.49023]
[1762533635952,0.49024,3306.8,3306.6,3.69806]
[1762533636153,0.34150556,3306.7,3306.6,4.10196]
[1762533636356,0.00313006,3307.3,3306.6,4.10196]
[1762533636357,0.00313006,3307.3,3307.2,0.49018]
[1762533636554,0.34466159,3307.3,3307.2,0.89408]
[1762533637460,0.00313006,3307.3,3307.2,0.89408]
[1762533637666,0.00313006,3307.3,3307.2,8.89408]
[1762533638859,0.34137256,3308.1,3308.0,0.49006]
[1762533639359,0.34137256,3308.1,3308.0,0.89396]
[1762533639558,0.34137256,3308.3,3308.2,0.49003]
[1762533639760,0.34137256,3308.7,3308.6,0.48997]
[1762533640060,0.49005,3308.1,3307.9,3.2078]
[1762533640255,0.4901,3307.8,3307.5,0.49014]
[1762533640456,0.34112929,3307.7,3307.6,0.49012]
[1762533640657,0.49004,3308.2,3307.6,0.87221]
[1762533640860,0.78699713,3308.1,3307.5,0.2423]
[1762533641061,0.49011,3307.8,3307.6,0.49012]
[1762533641457,0.78705713,3307.8,3307.6,0.49012]
[1762533641662,3.2078,3308.5,3307.5,0.24543383]
[1762533641663,0.49005,3308.1,3307.5,0.24543383]
[1762533641861,0.49012,3307.6,3307.5,0.00313383]
[1762533642057,0.29691956,3307.9,3307.5,0.00313383]
[1762533642461,3.2078,3308.1,3307.5,0.00313383]
[1762533642462,0.49012,3307.6,3307.5,0.00313383]
[1762533642758,0.87762,3307.6,3307.5,0.00313383]
[1762533642960,0.49021,3307.0,3306.9,0.00453275]
[1762533643162,0.78712956,3307.0,3306.9,0.00453275]
[1762533643362,0.29691956,3307.0,3306.9,0.49476275]
[1762533643563,0.30137768,3307.3,3307.1,0.4902]
[1762533643761,0.30137768,3307.3,3306.9,3.21233275]
[1762533643762,0.00453275,3307.3,3306.9,0.49474275]
[1762533643967,0.4902,3307.1,3306.9,0.4972234]
[1762533644164,0.00453275,3307.3,3306.9,0.0070134]
[1762533644863,0.49021,3307.0,3306.9,0.0070134]
[1762533645166,0.78127708,3307.2,3306.9,0.0070134]
[1762533645361,0.78128708,3307.2,3306.9,0.4972434]
[1762533645560,0.49021,3307.0,3306.9,0.0070134]
[1762533645862,0.87771,3307.0,3306.9,0.0070134]
[1762533646058,4.37658105,3307.0,3306.9,0.0070134]
[1762533646361,0.87771,3307.0,3306.9,0.0070134]
[1762533646759,0.00453275,3307.3,3306.9,0.0070134]
[1762533646965,0.2956001,3307.3,3307.1,0.49018]
[1762533647459,0.4902,3307.1,3307.0,0.49021]
[1762533647665,0.49471275,3307.3,3307.1,0.49019]
[1762533647858,0.49018,3307.2,3307.0,0.4902]
[1762533648068,0.00453275,3307.3,3307.2,0.87228]
[1762533648565,0.00453275,3307.3,3307.2,1.11458]
[1762533648965,0.49005,3308.1,3307.2,8.2423]
[1762533649160,0.70196067,3308.1,3307.8,0.2423]
[1762533649361,3.69784,3308.2,3308.1,0.49005]
[1762533649556,3.2078,3308.2,3308.1,0.49005]
[1762533650065,0.49006,3308.0,3307.8,0.49008]
[1762533650265,0.49006,3308.1,3307.7,3.2078]
[1762533650665,0.00453275,3308.5,3308.4,0.49]
[1762533651172,0.00453275,3308.5,3307.8,3.2078]
[1762533651461,3.2078,3308.0,3306.9,0.4972334]
[1762533651668,0.49019,3307.2,3306.9,0.4972434]
[1762533651858,0.1587,3307.5,3306.9,0.4972434]
[1762533652058,3.2078,3308.0,3306.9,0.0070134]
[1762533652263,0.49019,3307.2,3307.0,0.49021]
[1762533652466,3.2078,3307.6,3306.9,0.0070134]
[1762533652668,0.4902,3307.1,3306.9,0.4972234]
[1762533652866,0.49018,3307.2,3307.1,0.49019]
[1762533653062,0.4902,3307.2,3307.0,0.4902]
[1762533653263,3.2078,3308.0,3307.2,0.49018]
[1762533653464,3.2078,3308.0,3307.3,0.49016]
[1762533653465,0.99474083,3307.9,3307.3,0.49016]
[1762533653668,0.49015,3307.4,3307.3,0.49016]
[1762533653869,0.49013,3307.6,3307.4,0.49014]
[1762533654069,0.49014,3307.5,3307.4,0.49014]
[1762533654270,0.49016,3307.4,3307.3,0.49017]
[1762533654471,0.49014,3307.6,3307.4,0.49015]
[1762533654670,0.49014,3307.6,3307.5,0.49014]
[1762533654964,0.70326148,3307.9,3307.2,3.2078]
[1762533655173,0.49017,3307.4,3307.2,3.69797]
[1762533655669,0.70326148,3307.9,3307.2,3.2078]
[1762533655670,0.49013,3307.6,3307.2,3.2078]
[1762533655861,0.49015,3307.5,3307.3,0.49015]
[1762533656165,0.49015,3307.4,3307.3,0.49015]
[1762533656365,0.70423184,3307.9,3307.7,0.49011]
[1762533656366,0.4901,3307.8,3307.7,0.49011]
[1762533656673,3.2078,3308.0,3307.2,3.4353]
[1762533656972,3.2078,3308.4,3307.6,3.2078]
[1762533657171,3.2078,3308.4,3308.3,0.86542]
[1762533657869,3.2078,3308.4,3308.3,0.49002]
[1762533658669,3.2078,3308.4,3307.8,0.2275]
[1762533658670,0.00453275,3308.5,3308.4,0.49]
[1762533658867,0.00453275,3308.5,3308.4,4.0732]
[1762533659267,0.00453275,3308.5,3308.4,3.2078]
[1762533659465,0.86342275,3308.5,3308.4,0.49]
[1762533659670,0.49452275,3308.5,3308.4,0.49]
[1762533660067,0.00453275,3308.5,3308.4,4.0732]
[1762533660270,0.49004,3308.2,3308.0,3.2078]
[1762533660473,0.00453275,3308.5,3308.4,0.6029]
[1762533660666,0.00453275,3308.5,3308.4,4.3007]
[1762533660867,0.00453275,3308.5,3308.0,4.82944504]
[1762533661066,0.00453275,3308.5,3308.0,3.2078]
[1762533661267,0.4901,3307.7,3307.6,4.82944504]
[1762533661468,0.49018,3307.2,3307.1,3.2078]
[1762533661870,0.71112068,3307.9,3307.8,0.49009]
[1762533662077,0.49004,3308.2,3307.9,0.49006]
[1762533662376,0.49018,3307.2,3307.1,3.2078]
[1762533663474,3.2078,3307.6,3306.9,0.0070134]
[1762533663675,0.49021,3307.0,3306.9,0.0070134]
[1762533663880,0.85911,3307.0,3306.9,0.0070134]
[1762533664069,1.57052537,3307.0,3306.9,0.0070134]
[1762533664264,0.85911,3307.0,3306.9,0.0070134]
[1762533664464,0.49034,3306.2,3306.0,0.2275]
[1762533664672,3.2078,3307.1,3306.0,0.2275]
[1762533664673,3.2078,3307.1,3306.3,0.3754]
[1762533664877,3.2078,3307.7,3307.2,0.49018]
[1762533665077,0.71105581,3307.6,3307.4,0.49015]
[1762533665273,3.2078,3307.7,3306.8,0.2275]
[1762533665576,0.00453275,3307.6,3306.9,0.00453275]
[1762533665776,0.00453275,3307.6,3307.5,0.2275]
[1762533665971,3.2078,3308.2,3307.5,3.8107]
[1762533666169,2.15320048,3309.3,3307.5,3.8107]
[1762533666170,3.2078,3308.6,3308.4,0.49]
[1762533666569,3.2078,3309.0,3308.2,0.2275]
[1762533666775,1.2009053,3308.9,3308.7,0.48995]
[1762533666971,3.2078,3309.0,3308.2,0.2275]
[1762533667170,0.0036287,3308.9,3308.3,3.2078]
[1762533667373,0.0036287,3308.9,3308.7,0.48995]
[1762533667775,0.48996,3308.7,3308.5,0.48998]
[1762533667975,0.4935687,3308.9,3308.2,0.2275]
[1762533668168,3.2078,3308.5,3308.2,0.2275]
[1762533668476,3.2078,3308.5,3307.5,0.2275]
[1762533668679,0.49008,3307.9,3307.5,0.2275]
[1762533668872,3.2078,3308.5,3307.8,0.49009]
[1762533669379,0.49007,3308.0,3307.9,0.49007]
[1762533669574,0.4901,3307.8,3307.6,0.49012]
[1762533670074,0.49012,3307.6,3307.4,3.2078]
[1762533670577,0.71091149,3308.0,3307.4,3.2078]
[1762533670578,0.85903,3307.5,3307.4,3.2078]
[1762533671678,0.85903,3307.5,3306.9,0.00453275]
[1762533671679,0.49021,3307.0,3306.9,0.00453275]
[1762533672075,0.85911,3307.0,3306.9,0.00453275]
[1762533673081,0.49022,3307.0,3306.9,0.00453275]
[1762533673679,0.85912,3307.0,3306.9,0.00453275]
[1762533674477,0.85912,3307.0,3305.4,2.35910835]
[1762533674478,8.0,3306.9,3305.4,0.2275]
[1762533674676,3.2078,3306.5,3305.8,0.49039]
[1762533674879,3.2078,3306.5,3306.1,0.49035]
[1762533675076,3.2078,3306.5,3305.6,3.2078]
[1762533675077,3.69811,3306.5,3306.2,0.49034]
[1762533675273,3.2078,3306.5,3306.0,0.49036]
[1762533675478,0.00240186,3306.5,3306.4,0.49031]
[1762533675672,0.00240186,3306.5,3306.2,0.49034]
[1762533675979,0.00240186,3306.5,3306.1,3.4353]
[1762533676284,0.00240186,3306.5,3306.4,0.49031]
[1762533677284,0.00240186,3306.5,3306.4,0.86571]
[1762533678391,0.00240186,3306.5,3306.4,0.49031]
[1762533678786,0.00240186,3306.5,3306.1,3.4353]
[1762533679091,0.00240186,3306.5,3306.4,0.86571]
[1762533680692,0.00240186,3306.5,3306.4,8.86571]
[1762533680895,0.00240186,3306.5,3306.4,0.86571]
[1762533681392,0.00240186,3306.5,3306.4,0.3754]
[1762533681593,0.00240186,3306.5,3306.3,0.49031]
[1762533681793,0.00240186,3306.5,3306.4,0.49031]
[1762533681989,0.00240186,3306.5,3306.4,0.86571]
[1762533682194,3.2078,3307.0,3306.9,0.86563]
[1762533682494,3.2078,3307.0,3306.8,0.2275]
[1762533682791,0.00453275,3307.3,3307.2,0.86559]
[1762533683394,0.00793778,3307.3,3307.2,0.86559]
[1762533683587,0.00793778,3307.3,3307.2,1.09309]
[1762533684291,0.00793778,3307.3,3307.2,0.6029]
[1762533684688,0.00793778,3307.3,3307.2,1.09309]
[1762533684987,0.00793778,3307.3,3307.1,3.2078]
[1762533685296,0.00793778,3307.3,3307.1,3.698]
[1762533685588,0.00793778,3307.3,3307.2,0.49019]
[1762533685795,0.4902,3307.2,3306.9,0.49023]
[1762533685986,0.4902,3307.2,3306.8,0.2275]
[1762533685987,3.21573778,3307.3,3306.8,0.2275]
[1762533686185,3.21573778,3307.3,3306.8,0.49024]
[1762533686384,0.49022,3307.0,3306.7,0.49026]
[1762533686586,0.4902,3307.1,3306.8,0.49025]
[1762533686791,0.49022,3307.0,3306.6,0.2177]
[1762533686986,3.21573778,3307.3,3306.6,0.2177]
[1762533687304,3.21573778,3307.3,3307.2,0.70789]
[1762533687597,3.21573778,3307.3,3307.2,1.06149]
[1762533688001,0.00793778,3307.3,3307.2,1.06149]
[1762533688389,0.00793778,3307.3,3307.2,0.5713]
[1762533688702,0.00793778,3307.3,3307.1,0.4902]
[1762533689395,0.00793778,3307.3,3307.2,0.70789]
[1762533690194,0.00793778,3307.3,3306.8,3.2078]
[1762533690396,0.00793778,3307.3,3306.6,1.84097067]
[1762533690397,0.4902,3307.1,3306.6,0.2177]
[1762533690593,0.49022,3307.0,3306.8,0.49025]
[1762533691100,0.49022,3307.0,3306.8,0.49024]
[1762533691500,0.00793778,3307.3,3307.2,0.49019]
[1762533691706,0.00793778,3307.3,3307.2,0.70789]
[1762533692003,0.00793778,3307.3,3307.2,1.06149]
[1762533693299,0.00793778,3307.3,3307.2,0.70789]
[1762533693692,0.4902,3307.2,3306.6,1.84097067]
[1762533693894,0.49021,3307.1,3306.9,0.49023]
[1762533694093,0.00793778,3307.3,3306.6,0.2177]
[1762533694296,0.4902,3307.1,3306.9,0.49023]
[1762533694496,0.49019,3307.2,3307.0,0.49022]
[1762533695097,0.00793778,3307.3,3307.2,1.06149]
[1762533695997,0.00793778,3307.3,3306.6,0.2177]
[1762533696203,0.00793778,3307.3,3307.2,0.2177]
[1762533696396,0.00793778,3307.3,3307.2,1.06149]
[1762533698008,3.2078,3307.8,3307.7,0.84371]
[1762533698502,3.2078,3307.8,3307.7,0.3536]
[1762533698704,0.85136,3307.4,3307.3,1.62327067]
[1762533698910,0.49025,3306.9,3306.6,0.70797]
[1762533699114,0.49019,3307.2,3306.6,0.2177]
[1762533699307,0.49019,3307.2,3307.0,0.49021]
[1762533699505,0.49023,3306.9,3306.6,0.2177]
[1762533699700,3.2078,3307.3,3306.6,0.2177]
[1762533700009,3.69799,3307.3,3306.6,0.2177]
[1762533700211,0.49019,3307.2,3306.9,0.49022]
[1762533700512,3.2078,3307.3,3307.2,0.5382]
[1762533700814,0.0029146,3307.4,3307.3,0.83437]
[1762533701104,0.0029146,3307.4,3306.6,3.4255]
[1762533701310,0.0029146,3307.4,3307.2,0.194]
[1762533701502,0.49026,3306.7,3306.6,0.2177]
[1762533701700,0.49027,3306.7,3306.4,0.49031]
[1762533701908,0.49025,3306.8,3306.1,3.4353]
[1762533702109,0.49034,3306.2,3306.1,0.2275]
[1762533702308,0.49035,3306.1,3305.9,0.00453275]
[1762533702508,3.2078,3306.1,3305.9,0.00453275]
[1762533702813,3.2078,3306.1,3306.0,0.68718728]
[1762533703013,3.2078,3306.1,3306.0,0.19681728]
[1762533703208,3.2078,3306.1,3306.0,1.03138728]
[1762533703410,3.2078,3306.5,3306.0,0.19681728]
[1762533703607,0.82145,3306.1,3306.0,0.00281728]
[1762533703808,0.82147,3306.0,3305.9,0.00453275]
[1762533704108,10.01402974,3306.0,3304.8,0.194]
[1762533704309,3.2078,3305.0,3304.8,0.68454]
[1762533704516,3.69832,3305.0,3304.8,0.194]
[1762533704714,3.70089499,3305.0,3304.8,0.19717845]
[1762533704918,3.70089499,3305.0,3304.8,0.00317845]
[1762533705213,3.2078,3306.3,3304.9,3.2078]
[1762533705412,1.07660024,3306.8,3304.9,3.2078]
[1762533705413,3.2078,3305.9,3304.9,3.2078]
[1762533705815,0.4904,3305.8,3305.4,0.49045]
[1762533706113,0.00286487,3305.8,3305.4,0.00379064]
[1762533706317,0.00286487,3305.8,3305.4,0.19779064]
[1762533706513,0.00286487,3305.8,3305.7,0.3442]
[1762533707614,0.00286487,3305.8,3305.6,0.49042]
[1762533708011,0.00286487,3305.8,3305.4,0.00379064]
[1762533708012,0.33396487,3305.8,3305.7,0.49041]
[1762533708412,0.00286487,3305.8,3305.7,0.49041]
[1762533708614,0.00286487,3305.8,3305.7,0.83461]
[1762533708912,3.2078,3306.4,3306.3,0.49032]
[1762533709113,3.2078,3306.8,3306.7,0.49026]
[1762533709313,3.2078,3306.8,3306.7,0.83446]
[1762533709514,0.0533,3307.8,3306.7,0.83446]
[1762533709515,3.2078,3307.3,3307.2,0.49018]
[1762533709715,3.2078,3307.3,3307.2,0.83438]
[1762533709915,3.21134214,3307.3,3307.2,0.83438]
[1762533710218,3.21134214,3307.3,3306.9,0.00453275]
[1762533710515,0.49019,3307.2,3306.9,0.49475275]
[1762533710715,3.21134214,3307.3,3306.9,0.00453275]
[1762533710920,3.21134214,3307.3,3306.9,0.49476275]
[1762533711225,0.49021,3307.1,3306.9,0.00453275]
[1762533711611,0.49019,3307.2,3306.9,0.00453275]
[1762533711810,0.49021,3307.1,3306.9,0.00453275]
[1762533712215,3.21134214,3307.3,3306.9,0.00453275]
[1762533712420,0.00354214,3307.3,3306.9,0.00453275]
[1762533712615,0.00354214,3307.3,3307.1,0.49019]
[1762533713214,0.00354214,3307.3,3307.2,0.3442]
[1762533715515,0.00354214,3307.3,3307.2,0.5382]
[1762533715912,3.2078,3308.1,3308.0,0.49007]
[1762533716119,3.2078,3308.1,3307.9,0.49008]
[1762533716812,7.215,3308.2,3308.1,0.49006]
[1762533717013,0.00357016,3308.2,3308.1,0.82189627]
[1762533717719,0.00357016,3308.2,3308.1,8.82189627]
[1762533717919,3.2078,3309.0,3308.9,0.81944]
[1762533718116,9.695,3309.3,3308.9,0.81944]
[1762533718117,9.695,3309.3,3308.9,0.5237]
[1762533718317,3.69767,3309.5,3309.1,0.48991]
[1762533718517,0.48989,3309.3,3308.9,0.48993]
[1762533718819,3.2078,3309.1,3308.1,0.00233627]
[1762533719019,3.2078,3309.1,3308.3,0.00453275]
[1762533719020,3.2078,3308.7,3308.3,0.00453275]
[1762533719409,3.2078,3308.7,3308.5,0.48999]
[1762533719614,3.69778,3308.7,3308.5,0.48999]
[1762533719813,3.2078,3308.7,3308.5,0.49]
[1762533720017,3.2078,3308.7,3308.3,0.00453275]
[1762533720218,0.48999,3308.6,3308.3,0.49455275]
[1762533720521,3.2078,3308.7,3308.5,0.49]
[1762533720716,0.49001,3308.5,3308.3,0.49455275]
[1762533720916,0.49002,3308.4,3308.3,0.00453275]